fUST/lending_fUST_20260622
["ID","MTS","AMOUNT","RATE_DAILY","PERIOD"]
[426004414,1782106239000,-501.12407938,0.0001655,2]
[426004417,1782106239000,-506.08628058,0.0001655,2]
[426004446,1782106239000,-500.0,0.0001655,2]
[426004447,1782106239000,-500.0,0.0001655,2]
[426004451,1782106239000,-500.0,0.0001655,2]
[426004449,1782106239000,-500.0,0.0001655,2]
[426004452,1782106239000,-500.0,0.0001655,2]
[426004450,1782106239000,-500.0,0.0001655,2]
[426004454,1782106239000,-500.0,0.0001655,2]
[426004453,1782106239000,-500.0,0.0001655,2]
[426004448,1782106239000,-500.0,0.0001655,2]
[426004456,1782106239000,-500.0,0.0001655,2]
[426004457,1782106239000,-500.0,0.0001655,2]
[426004458,1782106239000,-631.24747476,0.0001655,2]
[426004461,1782106239000,-505.75101441,0.0001655,2]
[426004460,1782106239000,-527.79887134,0.0001655,2]
[426004459,1782106239000,-506.00695165,0.0001655,2]
[426004469,1782106239000,-500.0,0.00016712,2]
[426004462,1782106239000,-487.0,0.00016551,2]
[426004464,1782106239000,-500.0,0.0001664,2]
[426004465,1782106239000,-500.0,0.0001664,2]
[426004415,1782106239000,-504.47949222,0.0001655,2]
[426004463,1782106239000,-773.2,0.00016551,2]
[426004467,1782106239000,-189.48675713,0.0001664,2]
[426004468,1782106239000,-745.26,0.00016712,2]
[426004470,1782106239000,-500.0,0.00016712,2]
[426004471,1782106239000,-500.0,0.00016712,2]
[426004473,1782106239000,-500.0,0.00016712,2]
[426004474,1782106239000,-377.15256105,0.00016712,2]
[426004445,1782106239000,-500.0,0.0001655,2]
[426004455,1782106239000,-500.0,0.0001655,2]
[426004466,1782106239000,-500.0,0.0001664,2]
[426004442,1782106239000,-4977.99,0.0001655,2]
[426004444,1782106239000,-506.14173804,0.0001655,2]
[426004412,1782106239000,-501.62954131,0.0001655,2]
[426004418,1782106239000,-504.58362974,0.0001655,2]
[426004472,1782106239000,-500.0,0.00016712,2]
[426004419,1782106239000,-503.53953281,0.0001655,2]
[426004420,1782106239000,-501.94607466,0.0001655,2]
[426004422,1782106239000,-504.96964781,0.0001655,2]
[426004421,1782106239000,-509.99127787,0.0001655,2]
[426004428,1782106239000,-521.83425266,0.0001655,2]
[426004423,1782106239000,-564.63132743,0.0001655,2]
[426004426,1782106239000,-505.41714983,0.0001655,2]
[426004427,1782106239000,-500.0,0.0001655,2]
[426004429,1782106239000,-554.69044571,0.0001655,2]
[426004430,1782106239000,-525.87952045,0.0001655,2]
[426004424,1782106239000,-501.18686033,0.0001655,2]
[426004431,1782106239000,-506.67965159,0.0001655,2]
[426004433,1782106239000,-624.11212252,0.0001655,2]
[426004443,1782106239000,-525.38220476,0.0001655,2]
[426004434,1782106239000,-527.49591957,0.0001655,2]
[426004435,1782106239000,-521.50971739,0.0001655,2]
[426004436,1782106239000,-506.46364127,0.0001655,2]
[426004440,1782106239000,-506.40359996,0.0001655,2]
[426004439,1782106239000,-509.45120684,0.0001655,2]
[426004441,1782106239000,-582.96150641,0.0001655,2]
[426004437,1782106239000,-501.27847367,0.0001655,2]
[426004438,1782106239000,-535.410098,0.0001655,2]
[426004432,1782106239000,-513.03907648,0.0001655,2]
[426004425,1782106239000,-505.46359754,0.0001655,2]
[426004529,1782106243000,-500.0,0.00013966,2]
[426004530,1782106243000,-500.0,0.00013966,2]
[426004531,1782106243000,-304.37968329,0.00013966,2]
[426004532,1782106243000,-500.0,0.00013966,2]
[426004533,1782106243000,-500.0,0.00013966,2]
[426004534,1782106244000,-1133.68769362,0.00013966,2]
[426004540,1782106244000,-500.0,0.00013966,2]
[426004546,1782106244000,-1133.68769362,0.00013966,2]
[426004539,1782106244000,-1133.68769362,0.00013966,2]
[426004535,1782106244000,-1133.68769362,0.00013966,2]
[426004536,1782106244000,-500.0,0.00013966,2]
[426004537,1782106244000,-1133.68769362,0.00013966,2]
[426004538,1782106244000,-500.0,0.00013966,2]
[426004541,1782106244000,-1133.68769362,0.00013966,2]
[426004542,1782106244000,-500.0,0.00013966,2]
[426004543,1782106244000,-1133.68769362,0.00013966,2]
[426004551,1782106244000,-500.0,0.00013966,2]
[426004545,1782106244000,-1133.68769362,0.00013966,2]
[426004547,1782106244000,-500.0,0.00013966,2]
[426004556,1782106244000,-1082.84679105,0.00013966,2]
[426004550,1782106244000,-1133.68769362,0.00013966,2]
[426004552,1782106244000,-1133.68769362,0.00013966,2]
[426004555,1782106244000,-1133.68769362,0.00013966,2]
[426004554,1782106244000,-500.0,0.00013966,2]
[426004548,1782106244000,-500.0,0.00013966,2]
[426004549,1782106244000,-1133.68769362,0.00013966,2]
[426004544,1782106244000,-500.0,0.00013966,2]
[426004553,1782106244000,-1133.68769362,0.00013966,2]
[426004582,1782106247000,-910.2664687,0.00013966,2]
[426004588,1782106247000,-1133.68769362,0.00013966,2]
[426004589,1782106247000,-1133.68769362,0.00013966,2]
[426004584,1782106247000,-1133.68769362,0.00013966,2]
[426004592,1782106247000,-1133.68769362,0.00013966,2]
[426004585,1782106247000,-1133.68769362,0.00013966,2]
[426004579,1782106247000,-1133.68769362,0.00013966,2]
[426004593,1782106247000,-446.17103175,0.00013966,2]
[426004580,1782106247000,-1133.68769362,0.00013966,2]
[426004591,1782106247000,-1133.68769362,0.00013966,2]
[426004581,1782106247000,-1133.68769362,0.00013966,2]
[426004577,1782106247000,-50.84090257,0.00013966,2]
[426004578,1782106247000,-1133.68769362,0.00013966,2]
[426004583,1782106247000,-223.42122492,0.00013966,2]
[426004586,1782106247000,-1133.68769362,0.00013966,2]
[426004590,1782106247000,-1133.68769362,0.00013966,2]
[426004594,1782106247000,-687.51666187,0.00013966,2]
[426004608,1782106247000,-1133.68769362,0.00013966,2]
[426004609,1782106247000,-1001.87429035,0.00013966,2]
[426004606,1782106247000,-1133.68769362,0.00013966,2]
[426004605,1782106247000,-1133.68769362,0.00013966,2]
[426004602,1782106247000,-1133.68769362,0.00013966,2]
[426004600,1782106247000,-1133.68769362,0.00013966,2]
[426004603,1782106247000,-1133.68769362,0.00013966,2]
[426004607,1782106247000,-1133.68769362,0.00013966,2]
[426004598,1782106247000,-1133.68769362,0.00013966,2]
[426004597,1782106247000,-1133.68769362,0.00013966,2]
[426004599,1782106247000,-1133.68769362,0.00013966,2]
[426004604,1782106247000,-1133.68769362,0.00013966,2]
[426004596,1782106247000,-1133.68769362,0.00013966,2]
[426004595,1782106247000,-1133.68769362,0.00013966,2]
[426004601,1782106247000,-1133.68769362,0.00013966,2]
[426004587,1782106247000,-1133.68769362,0.00013966,2]
[426004610,1782106253000,151.0,9.999e-05,2]
[426004611,1782106270000,-3695.95474645,0.00013826,2]
[426004657,1782107431000,-357.64394767,0.00010623,7]
[426004668,1782107431000,-1594.11801038,0.0001585,2]
[426004666,1782107431000,-357.64394768,0.00011898,7]
[426004664,1782107431000,-357.64394767,0.00011473,7]
[426004662,1782107431000,-357.64394767,0.00011154,7]
[426004659,1782107431000,-357.64394767,0.00010835,7]
[426004935,1782107438000,-3405.88198962,0.0001585,2]
[426004936,1782107438000,-33834.77991779,0.00016233,2]
[426004947,1782107440000,-595.6696311,0.00016071,2]
[426004949,1782107440000,-329.4,0.00016233,2]
[426004948,1782107440000,-16548.20383012,0.00016233,2]
[426004967,1782107443000,-1357.39668019,0.00016233,2]
[426004966,1782107443000,-3339.73672122,0.00016233,2]
[426004964,1782107443000,-2110.0,0.00016233,2]
[426004965,1782107443000,-508.60921729,0.00016233,2]
[426004963,1782107443000,-5057.78927451,0.00016233,2]
[426004962,1782107443000,-554.01676889,0.00016233,2]
[426004961,1782107443000,-7719.88931266,0.00016233,2]
[426005025,1782107446000,-329.435,0.00016233,2]
[426005024,1782107446000,-22558.95086046,0.00016233,2]
[426005044,1782108070000,-151.0,0.00010195,2]
[426005046,1782108087000,-151.0,0.0001051,2]
[426005047,1782108104000,-223.5274673,0.00010835,7]
[426005051,1782108120000,-335.29120099,0.00011473,7]
[426005052,1782108137000,-676.78273118,0.00015,2]
[426005053,1782108154000,-176.83170444,0.00015908,2]
[426005386,1782108576000,2061.19323461,0.00023287,120]
[426005421,1782108631000,-302.0,0.00016,2]
[426005419,1782108631000,-4.37588844,0.00016,2]
[426005417,1782108631000,-439.17885472,0.00016,2]
[426005413,1782108631000,-318.66730058,0.00015933,2]
[426005411,1782108631000,-176.83170444,0.00015712,2]
[426005426,1782108631000,-427.20329253,0.00016033,2]
[426005430,1782108631000,-1742.55011859,0.00016033,2]
[426005423,1782108631000,-13.62411156,0.00016,2]
[426005415,1782108631000,-1248.24985398,0.00015933,2]
[426005428,1782108631000,-527.80976733,0.00016033,2]
[426005548,1782108638000,-346.08272541,0.00015876,2]
[426005549,1782108638000,-581.01870634,0.00016033,2]
[426005937,1782108643000,-6753.22810539,0.00016033,2]
[426006005,1782108646000,-3380.55562623,0.00016033,2]
[426006004,1782108646000,-2672.63740595,0.00016033,2]
[426006020,1782109786000,15030.0,0.00023124,30]
[426006059,1782109832000,-4240.55941701,0.00013246,2]
[426006067,1782109832000,-433.45811007,0.00013246,2]
[426006072,1782109832000,-456.33824393,0.0001338,2]
[426006070,1782109832000,-325.98247292,0.00013246,2]
[426006203,1782109838000,-2947.68058347,0.00013515,2]
[426006202,1782109838000,-548.21546683,0.0001338,2]
[426006258,1782109840000,-902.9028812,0.00013515,2]
[426006604,1782109843000,-388.39333647,0.00013515,2]
[426006975,1782109846000,-5000.0,0.0001338,2]
[426007013,1782109846000,-1092.21862225,0.00015731,2]
[426007014,1782109846000,-2304.82962361,0.000158,2]
[426007007,1782109846000,-318.41112448,0.00015264,2]
[426007011,1782109846000,-268.23296076,0.00015661,7]
[426007003,1782109846000,-473.95116551,0.00013515,2]
[426007009,1782109846000,-363.53452955,0.00015264,2]
[426007005,1782109846000,-178.82197384,0.00014791,7]
[426006977,1782109846000,-287.07203335,0.00013515,2]
[426007056,1782110874000,156.088,0.0001338,2]
[426007107,1782111032000,-500.0,0.00015627,2]
[426007104,1782111032000,-500.0,0.00015627,2]
[426007105,1782111032000,-204.13728735,0.00015627,2]
[426007102,1782111032000,-436.48015536,0.00015627,2]
[426007103,1782111032000,-500.0,0.00015627,2]
[426007101,1782111032000,-210.1475048,0.00015627,2]
[426007097,1782111032000,-190.1512707,0.00015627,2]
[426007099,1782111032000,-500.0,0.00015627,2]
[426007100,1782111032000,-500.0,0.00015627,2]
[426007075,1782111032000,-827.13413389,0.0001338,2]
[426007098,1782111032000,-500.0,0.00015627,2]
[426007094,1782111032000,-500.0,0.00015627,2]
[426007076,1782111032000,-1579.0923203,0.00014425,2]
[426007096,1782111032000,-500.0,0.00015627,2]
[426007093,1782111032000,-184.41647683,0.00015627,2]
[426007092,1782111032000,-505.62806042,0.00015627,2]
[426007090,1782111032000,-500.0,0.00015627,2]
[426007088,1782111032000,-500.0,0.00015627,2]
[426007086,1782111032000,-800.79,0.0001562,3]
[426007084,1782111032000,-266.93,0.0001562,3]
[426007080,1782111032000,-1848.11107157,0.0001472,2]
[426007082,1782111032000,-533.86,0.0001562,3]
[426007078,1782111032000,-5473.33366122,0.0001472,2]
[426007077,1782111032000,-2390.77354581,0.0001472,2]
[426007074,1782111032000,-5000.0,0.00013246,2]
[426007095,1782111032000,-500.0,0.00015627,2]
[426007117,1782111032000,-1121.61360464,0.00015629,2]
[426007127,1782111032000,-1121.61360464,0.00015629,2]
[426007106,1782111032000,-500.0,0.00015627,2]
[426007110,1782111032000,-1121.61360464,0.00015629,2]
[426007159,1782111032000,-2649.01028481,0.0001563,2]
[426007154,1782111032000,-41903.76232971,0.0001563,2]
[426007152,1782111032000,-2028.08132693,0.00015629,2]
[426007151,1782111032000,-1192.98901584,0.00015629,2]
[426007149,1782111032000,-1192.98901584,0.00015629,2]
[426007147,1782111032000,-1192.98901584,0.00015629,2]
[426007145,1782111032000,-1192.98901584,0.00015629,2]
[426007143,1782111032000,-1192.98901584,0.00015629,2]
[426007138,1782111032000,-1192.98901584,0.00015629,2]
[426007136,1782111032000,-1192.98901584,0.00015629,2]
[426007139,1782111032000,-1192.98901584,0.00015629,2]
[426007141,1782111032000,-1192.98901584,0.00015629,2]
[426007156,1782111032000,-329.83035364,0.0001563,2]
[426007129,1782111032000,-1121.61360464,0.00015629,2]
[426007134,1782111032000,-1121.61360464,0.00015629,2]
[426007109,1782111032000,-1121.61360464,0.00015629,2]
[426007113,1782111032000,-1121.61360464,0.00015629,2]
[426007111,1782111032000,-1121.61360464,0.00015629,2]
[426007115,1782111032000,-1121.61360464,0.00015629,2]
[426007108,1782111032000,-500.0,0.00015627,2]
[426007123,1782111032000,-1121.61360464,0.00015629,2]
[426007132,1782111032000,-1121.61360464,0.00015629,2]
[426007131,1782111032000,-1121.61360464,0.00015629,2]
[426007121,1782111032000,-1121.61360464,0.00015629,2]
[426007125,1782111032000,-1121.61360464,0.00015629,2]
[426007119,1782111032000,-1121.61360464,0.00015629,2]
[426007182,1782111038000,-3573.36659503,0.00015473,2]
[426007183,1782111038000,-24950.66465182,0.0001563,2]
[426007181,1782111038000,-1830.79622631,0.0001563,2]
[426007192,1782111046000,-4325.24891935,0.0001563,2]
[426007225,1782111447000,73349.79027759,7.6e-05,2]
[426007228,1782111470000,-822.90124129,0.00011385,2]
[426007227,1782111470000,-306.29011929,0.00011385,2]
[426007230,1782111654000,-306.24,0.00011271,2]
[426007229,1782111654000,-699.18302557,0.00011385,2]
[426007232,1782111670000,-261.94647299,0.00011271,2]
[426007233,1782111687000,-854.22352701,0.000115,2]
[426007234,1782111704000,-261.94647299,0.000115,2]
[426007235,1782111720000,-854.22352701,0.000115,2]
[426007236,1782111737000,-261.94647299,0.000115,2]
[426007237,1782111754000,-854.22352701,0.000115,2]
[426007273,1782112232000,-247.8526133,0.000115,2]
[426007271,1782112232000,-306.24,0.00011271,2]
[426007352,1782112239000,-1571.85375533,0.000115,2]
[426007683,1782112248000,-288.10670499,0.000115,2]
[426007682,1782112248000,-1426.20755437,0.000115,2]
[426007684,1782112249000,-7601.17207218,0.000115,2]
[426007689,1782112264000,-306.29,0.00011271,2]
[426007690,1782112265000,-306.36,0.00011271,2]
[426007694,1782112411000,-156.088,0.00011158,2]
[426007696,1782112445000,-306.24138195,0.00011046,2]
[426007697,1782112446000,-306.29,0.00011046,2]
[426007698,1782112453000,-306.24,0.00010936,2]
[426007699,1782112454000,-306.29,0.00010936,2]
[426007700,1782112461000,-346.29526289,0.00010827,2]
[426007701,1782112470000,-4653.70473711,0.00010827,2]
[426007702,1782112470000,-2947.46526289,0.00010936,2]
[426007705,1782112525000,-87.50473711,0.00010936,2]
[426007704,1782112525000,-1571.47526289,0.00010827,2]
[426007723,1782112646000,-187.44541979,0.00010719,2]
[426007737,1782112830000,-499.89026345,0.00010612,2]
[426007738,1782112833000,-199.53298916,0.00010612,2]
[426007739,1782112834000,-391.16871995,0.00010612,2]
[426007740,1782112835000,-358.4433682,0.00010612,2]
[426007741,1782112836000,-302.76163202,0.00010612,2]
[426007742,1782112837000,-500.0,0.00010612,2]
[426007743,1782112839000,-285.21233772,0.00010506,2]
[426007744,1782112840000,-753.43478918,0.00010506,2]
[426007745,1782112847000,-532.22330927,0.00010401,2]
[426007746,1782112848000,-715.97383072,0.00010401,2]
[426007747,1782112849000,-254.7799585,0.00010401,2]
[426007753,1782113220000,2154.70997159,0.0001,2]
[426007771,1782113432000,-4988.57968765,0.000115,2]
[426007766,1782113432000,-573.13871234,0.00011158,2]
[426007769,1782113432000,-3394.33939746,0.00011271,2]
[426007764,1782113432000,-2270.87446784,0.00011158,2]
[426007956,1782113453000,-467.12636526,0.00015587,2]
[426007951,1782113453000,-158.56,0.00015411,2]
[426007952,1782113453000,-955.69129446,0.00015488,2]
[426007950,1782113453000,-229.04,0.00015354,2]
[426007945,1782113453000,-7.218e-05,0.00012188,2]
[426007946,1782113453000,-200.49015248,0.00012188,2]
[426007949,1782113453000,-155.35,0.00015282,2]
[426007947,1782113453000,-401.414748,0.00013699,2]
[426007954,1782113453000,-800.79,0.00015579,3]
[426007944,1782113453000,-45.54223007,0.000115,2]
[426007948,1782113453000,-165.674172,0.00014701,2]
[426007955,1782113453000,-159.60890615,0.00015587,2]
[426007960,1782113453000,-825.72173925,0.00015588,2]
[426007957,1782113453000,-825.72173925,0.00015588,2]
[426007964,1782113453000,-825.72173925,0.00015588,2]
[426007967,1782113453000,-825.72173925,0.00015588,2]
[426007953,1782113453000,-266.93,0.00015579,3]
[426007968,1782113453000,-825.72173925,0.00015588,2]
[426007965,1782113453000,-825.72173925,0.00015588,2]
[426007963,1782113453000,-825.72173925,0.00015588,2]
[426007966,1782113453000,-825.72173925,0.00015588,2]
[426007961,1782113453000,-825.72173925,0.00015588,2]
[426007958,1782113453000,-825.72173925,0.00015588,2]
[426007959,1782113453000,-825.72173925,0.00015588,2]
[426007962,1782113453000,-825.72173925,0.00015588,2]
[426007970,1782113454000,-225.73853304,0.00015588,2]
[426007971,1782113454000,-112.26146696,0.00015588,2]
[426007969,1782113454000,-599.98320621,0.00015588,2]
[426007986,1782114631000,-433.45811007,0.00012367,2]
[426007991,1782114631000,-500.0,0.00015033,2]
[426007989,1782114631000,-2222.6213459,0.00012618,2]
[426007993,1782114631000,-151.0,0.000151,2]
[426007997,1782114631000,-533.86,0.00015279,3]
[426007995,1782114631000,-836.22988267,0.00015189,2]
[426008001,1782114631000,-483.27175057,0.00015289,2]
[426007999,1782114631000,-2754.85293198,0.00015289,2]
[426008006,1782114632000,-433.45811007,0.00015289,2]
[426008003,1782114632000,-1854.96983728,0.00015289,2]
[426008026,1782114638000,-812.48086451,0.00015289,2]
[426012787,1782115254000,-2781.67517644,0.00011385,2]
[426012908,1782115719000,1218.15952324,0.0001,2]
[426012945,1782115832000,-320.81182996,0.00013546,2]
[426012943,1782115832000,-539.50843551,0.00013365,2]
[426012944,1782115832000,-4446.24484436,0.00013546,2]
[426012942,1782115832000,-161.3356276,0.00012046,2]
[426012941,1782115832000,-11010.79439485,0.000115,2]
[426012940,1782115832000,-311.08178398,0.00010827,2]
[426012939,1782115832000,-972.42670113,0.00010719,2]
[426012947,1782115833000,-328.56773658,0.00013672,2]
[426012946,1782115833000,-471.19754078,0.00013546,2]
[426013021,1782115838000,-1181.69588337,0.00013968,2]
[426013023,1782115838000,-2697.54217753,0.00014068,2]
[426013019,1782115838000,-207.7625107,0.00013961,2]
[426013017,1782115838000,-599.37156143,0.0001396,2]
[426013015,1782115838000,-508.89564879,0.0001396,2]
[426013013,1782115838000,-2406.4454631,0.00013672,2]
[426013025,1782115838000,-744.6447012,0.00014068,2]
[426013011,1782115838000,-2812.63349532,0.00013672,2]
[426013009,1782115838000,-1688.59806435,0.00013365,2]
[426013004,1782115838000,-971.11518391,0.00013365,2]
[426013006,1782115838000,-37.82892927,0.00013365,2]
[426013290,1782115841000,-3135.93157371,0.00014068,2]
[426013291,1782115841000,-57.84335146,0.00014068,2]
[426013334,1782115843000,-309.18513893,0.00014899,2]
[426013313,1782115843000,-175.60479871,0.00014068,2]
[426013324,1782115843000,-610.03313433,0.00014068,2]
[426013318,1782115843000,-416.45482504,0.00014068,2]
[426013320,1782115843000,-341.96051574,0.00014068,2]
[426013316,1782115843000,-266.79788591,0.00014068,2]
[426013326,1782115843000,-176.092391,0.00014657,2]
[426013330,1782115843000,-265.26215272,0.00014857,2]
[426013328,1782115843000,-2046.77565879,0.000148,2]
[426013332,1782115843000,-212.57910551,0.00014899,2]
[426013322,1782115843000,-390.81201799,0.00014068,2]
[426013358,1782115846000,-717.25529848,0.00014899,2]
[426013361,1782115846000,-717.25529848,0.00014899,2]
[426013362,1782115846000,-717.25529848,0.00014899,2]
[426013360,1782115846000,-717.25529848,0.00014899,2]
[426013359,1782115846000,-717.25529848,0.00014899,2]
[426013357,1782115846000,-717.25529848,0.00014899,2]
[426013351,1782115846000,-195.49105404,0.00014899,2]
[426013356,1782115846000,-717.25529848,0.00014899,2]
[426013353,1782115846000,-717.25529848,0.00014899,2]
[426013354,1782115846000,-717.25529848,0.00014899,2]
[426013364,1782115846000,-717.25529848,0.00014899,2]
[426013352,1782115846000,-717.25529848,0.00014899,2]
[426013355,1782115846000,-717.25529848,0.00014899,2]
[426013363,1782115846000,-717.25529848,0.00014899,2]
[426013379,1782115846000,-58162.89149902,0.000149,2]
[426013367,1782115846000,-717.25529848,0.00014899,2]
[426013365,1782115846000,-717.25529848,0.00014899,2]
[426013380,1782115846000,-1974.63957015,0.000149,2]
[426013378,1782115846000,-731.60040444,0.00014899,2]
[426013377,1782115846000,-731.60040444,0.00014899,2]
[426013374,1782115846000,-731.60040444,0.00014899,2]
[426013375,1782115846000,-731.60040444,0.00014899,2]
[426013376,1782115846000,-731.60040444,0.00014899,2]
[426013373,1782115846000,-731.60040444,0.00014899,2]
[426013370,1782115846000,-731.60040444,0.00014899,2]
[426013371,1782115846000,-731.60040444,0.00014899,2]
[426013372,1782115846000,-731.60040444,0.00014899,2]
[426013369,1782115846000,-731.60040444,0.00014899,2]
[426013368,1782115846000,-717.25529848,0.00014899,2]
[426013366,1782115846000,-717.25529848,0.00014899,2]
[426013404,1782116845000,-156.06371454,0.00011046,7]
[426013514,1782117038000,-811.51114452,0.00014696,2]
[426013524,1782117038000,-3431.17298948,0.00014696,2]
[426013500,1782117038000,-668.05136613,0.00013919,2]
[426013493,1782117038000,-321.36526697,0.00013919,2]
[426013506,1782117038000,-43814.83562355,0.00014595,2]
[426013504,1782117038000,-508.04172992,0.00014281,2]
[426013502,1782117038000,-545.72319982,0.0001396,2]
[426013497,1782117038000,-427.98085518,0.00013919,2]
[426013496,1782117038000,-374.48324828,0.00013919,2]
[426013508,1782117038000,-3408.96258512,0.00014694,2]
[426013510,1782117038000,-38137.21284375,0.00014696,2]
[426013519,1782117038000,-9460.92591433,0.00014696,2]
[426013512,1782117038000,-439.34694835,0.00014696,2]
[426014109,1782117043000,-500.0,0.00014696,2]
[426014504,1782117046000,-152685.52310378,0.00014696,2]
[426014478,1782117046000,-2844.5772343,0.00014696,2]
[426014681,1782117094000,-3846.95474645,0.00014595,2]
[426014686,1782117519000,3056.84047676,0.0001,2]
[426014890,1782118232000,-564.50894922,0.0001472,2]
[426014892,1782118232000,-198.13785096,0.0001472,2]
[426014894,1782118232000,-1231.47197164,0.0001472,2]
[426014896,1782118232000,-156.3912004,0.00014731,2]
[426014906,1782118232000,-644.73153177,0.00014899,2]
[426014912,1782118232000,-2394.3781813,0.00014899,2]
[426014914,1782118232000,-623.3291836,0.00014899,2]
[426014910,1782118232000,-2394.3781813,0.00014899,2]
[426014908,1782118232000,-2394.3781813,0.00014899,2]
[426014898,1782118232000,-1749.64664953,0.00014899,2]
[426015236,1782118239000,-547.66306518,0.00014899,2]
[426015587,1782118241000,-500.0,0.00014899,2]
[426015579,1782118241000,-500.0,0.00014899,2]
[426015570,1782118241000,-2394.3781813,0.00014899,2]
[426015573,1782118241000,-500.0,0.00014899,2]
[426015568,1782118241000,-500.0,0.00014899,2]
[426015564,1782118241000,-491.17596216,0.00014899,2]
[426015566,1782118241000,-368.17620624,0.00014899,2]
[426015563,1782118241000,-500.0,0.00014899,2]
[426015551,1782118241000,-500.0,0.00014899,2]
[426015553,1782118241000,-500.0,0.00014899,2]
[426015549,1782118241000,-2394.3781813,0.00014899,2]
[426015561,1782118241000,-500.0,0.00014899,2]
[426015581,1782118241000,-500.0,0.00014899,2]
[426015559,1782118241000,-500.0,0.00014899,2]
[426015555,1782118241000,-2394.3781813,0.00014899,2]
[426015557,1782118241000,-500.0,0.00014899,2]
[426015544,1782118241000,-2394.3781813,0.00014899,2]
[426015542,1782118241000,-672.25788313,0.00014899,2]
[426015528,1782118241000,-1722.12029817,0.00014899,2]
[426015527,1782118241000,-1223.38593252,0.00014899,2]
[426015546,1782118241000,-2394.3781813,0.00014899,2]
[426015576,1782118241000,-500.0,0.00014899,2]
[426015548,1782118241000,-2394.3781813,0.00014899,2]
[426015589,1782118241000,-500.0,0.00014899,2]
[426015622,1782118241000,-2394.37818129,0.00014899,2]
[426015618,1782118241000,-2394.37818129,0.00014899,2]
[426015626,1782118241000,-2394.37818129,0.00014899,2]
[426015620,1782118241000,-2394.37818129,0.00014899,2]
[426015631,1782118241000,-3591.56727194,0.00014899,2]
[426015632,1782118241000,-52287.31216289,0.000149,2]
[426015616,1782118241000,-2394.37818129,0.00014899,2]
[426015598,1782118241000,-500.0,0.00014899,2]
[426015602,1782118241000,-500.0,0.00014899,2]
[426015600,1782118241000,-500.0,0.00014899,2]
[426015624,1782118241000,-2394.37818129,0.00014899,2]
[426015594,1782118241000,-500.0,0.00014899,2]
[426015593,1782118241000,-500.0,0.00014899,2]
[426015614,1782118241000,-2394.37818129,0.00014899,2]
[426015612,1782118241000,-2394.37818129,0.00014899,2]
[426015610,1782118241000,-2394.37818129,0.00014899,2]
[426015607,1782118241000,-2394.3781813,0.00014899,2]
[426015609,1782118241000,-2394.37818129,0.00014899,2]
[426015605,1782118241000,-500.0,0.00014899,2]
[426015585,1782118241000,-651.93818417,0.00014899,2]
[426015591,1782118241000,-500.0,0.00014899,2]
[426015596,1782118241000,-500.0,0.00014899,2]
[426015583,1782118241000,-500.0,0.00014899,2]
[426016189,1782118246000,-3383.14835464,0.000149,2]
[426018900,1782118629000,430.73381953,0.00010618,2]
[426019099,1782118780000,306.84,0.00010925,2]
[426019100,1782118780000,306.84,0.0001104,2]
[426019101,1782118790000,-306.2967171,0.00011155,2]
[426019102,1782118812000,306.29011929,0.000111,2]
[426019108,1782118853000,-0.5432829,0.00011155,2]
[426019109,1782118870000,-306.84,0.0001127,2]
[426019110,1782118887000,-306.84,0.00011385,2]
[426019111,1782118904000,-2375.13892735,0.000115,2]
[426019112,1782118921000,-156.0,0.000114,2]
[426019113,1782118937000,-306.84,0.000115,2]
[426019114,1782118954000,-306.84,0.00011615,2]
[426019140,1782119431000,-258.85811007,0.00011713,2]
[426019139,1782119431000,-174.6,0.0001122,2]
[426019253,1782119438000,-1154.2467241,0.00011805,2]
[426019251,1782119438000,-1807.75552688,0.00011805,2]
[426019241,1782119438000,-1807.75552688,0.00011805,2]
[426019245,1782119438000,-1807.75552688,0.00011805,2]
[426019233,1782119438000,-48.02188993,0.00011713,2]
[426019238,1782119438000,-1807.75552688,0.00011805,2]
[426019240,1782119438000,-1807.75552688,0.00011805,2]
[426019254,1782119438000,-653.50880278,0.00011805,2]
[426019242,1782119438000,-1807.75552688,0.00011805,2]
[426019235,1782119438000,-300.0,0.00011804,2]
[426019236,1782119438000,-1807.75552688,0.00011805,2]
[426019243,1782119438000,-1807.75552688,0.00011805,2]
[426019234,1782119438000,-306.84,0.0001173,2]